[Event "Hungarian Youth-ch I 2024"]
[Site "Szolnok"]
[Date "2024.04.06"]
[Round "9.2"]
[White "Gulacsi, Donat Ferenc"]
[Black "Kocsmar, Akos"]
[Result "0-1"]
[ECO "B20"]
[WhiteElo "1912"]
[BlackElo "2029"]
[Annotator "NA RC"]
[PlyCount "102"]
[EventDate "2024.03.31"]
[EventType "swiss"]
[EventCountry "HUN"]
[SourceTitle "playchess.com"]
[Source "ChessBase"]
[SourceQuality "1"]
[TimeControl "5400+30"]

1. e4 {[%emt 0:06:30]} c5 {[%emt 0:00:04]} 2. Ne2 {[%emt 0:00:06]} Nf6 {[%emt 0:00:04]} 3. e5 {[%emt 0:00:21]} Nd5 {[%emt 0:00:54]} 4. Nbc3 {[%emt 0:00:09]} Nb6 {[%emt 0:03:40]} 5. d4 {[%emt 0:00:52]} cxd4 {[%emt 0:00:07]} 6. Nxd4 {[%emt 0:00:03] B20: Sicilian: Unusual White 2nd moves.} Nc6 {[%emt 0:00:45]} 7. Bf4 {[%emt 0:00:59]} g6 {[%emt 0:01:01]} 8. Be2 {[%emt 0:06:30]} Bg7 {[%emt 0:00:28]} 9. Nxc6 {[%emt 0:03:52]} (9. Nf3 $14) 9... bxc6 {[%emt 0:00:33]} 10. Qd2 {[%emt 0:03:50]} f6 {[%emt 0:03:58]} 11. Bh6 {[%emt 0:15:55]} Bxh6 {[%emt 0:02:31]} 12. Qxh6 {[%emt 0:00:05]} Kf7 {[%emt 0:00:11]} 13. f4 {[%emt 0:15:48]} d5 {[%emt 0:02:36]} 14. O-O-O {[%emt 0:03:52]} Qf8 {[%emt 0:03:40]} 15. Qxf8+ {[%emt 0:04:39]} Rxf8 {[%emt 0:01:45]} 16. exf6 {[%emt 0:02:20]} exf6 {[%emt 0:01:25]} 17. g4 {[%emt 0:02:03]} Re8 {[%emt 0:01:45]} 18. g5 {[%emt 0:03:59]} Bf5 {[%emt 0:00:57]} 19. Ba6 {[%emt 0:07:42]} Re7 {[%emt 0:00:27]} 20. Rhe1 {[%emt 0:02:13]} Rae8 {[%emt 0:00:29]} 21. Rxe7+ {[%emt 0:00:45]} Rxe7 {[%emt 0:00:01]} 22. Kd2 $1 {[%emt 0:00:26]} Nd7 {[%emt 0:02:33]} 23. Bc8 {[%emt 0:04:47]} Nc5 {[%emt 0:03:43]} 24. Bxf5 {[%emt 0:01:07]} gxf5 {[%emt 0:00:01]} 25. gxf6 {[%emt 0:04:21]} Kxf6 {[%emt 0:00:02]} 26. Rg1 {[%emt 0:00:14]} Ne4+ {[%emt 0:03:54]} 27. Nxe4+ {[%emt 0:00:14]} Rxe4 {[%emt 0:00:01]} 28. Rf1 {[%emt 0:00:18]} Kg6 {[%emt 0:00:05]} 29. Rf3 {[%emt 0:00:48]} Kh5 {[%emt 0:01:44]} 30. Rh3+ {[%emt 0:06:48]} Kg4 {[%emt 0:00:42]} 31. Rxh7 {[%emt 0:00:05]} Rxf4 {[%emt 0:00:33]} 32. Rxa7 {[%emt 0:02:04]} Rf2+ {[%emt 0:00:05]} 33. Kd3 {[%emt 0:01:42]} Rxh2 {[%emt 0:00:08]} 34. Ra6 {[%emt 0:01:07]} Rh6 {[%emt 0:00:58]} 35. b4 {[%emt 0:00:47]} f4 {[%emt 0:00:06]} 36. b5 {[%emt 0:00:23]} Rh3+ {[%emt 0:00:01]} 37. Kd4 {[%emt 0:00:44]} cxb5 {[%emt 0:00:02]} 38. Rg6+ {[%emt 0:00:14]} Kf3 {[%emt 0:00:27]} 39. Kxd5 {[%emt 0:00:29]} Rh2 {[%emt 0:00:10]} 40. Rc6 {[%emt 0:00:24]} Rg2 {[%emt 0:04:12]} 41. Rc3+ {[%emt 0:00:49]} Kg4 $19 {[%emt 0:01:18]} 42. Rc8 {[%emt 0:00:28]} f3 {[%emt 0:00:31]} 43. c4 {[%emt 0:00:30]} Rd2+ {[%emt 0:03:20]} 44. Kc5 {[%emt 0:00:29]} bxc4 {[%emt 0:00:07]} 45. Rg8+ {[%emt 0:00:23]} Kh3 {[%emt 0:00:57]} 46. Rh8+ {[%emt 0:00:25]} Kg2 {[%emt 0:00:06]} 47. Rg8+ {[%emt 0:00:04]} Kf1 {[%emt 0:01:28]} 48. Kxc4 {[%emt 0:00:42]} Rxa2 {[%emt 0:00:01]} 49. Kd3 {[%emt 0:00:07]} f2 {[%emt 0:00:54]} 50. Re8 {[%emt 0:01:18]} Ra3+ {[%emt 0:00:57]} 51. Kd2 {[%emt 0:00:06]} Kg2 {[%emt 0:00:05]} 0-1

[Event "Hungarian Youth-ch I 2024"]
[Site "Szolnok"]
[Date "2024.04.06"]
[Round "9.3"]
[White "Fule, Simon"]
[Black "Herpai, Jozsef Matyas"]
[Result "1-0"]
[ECO "B90"]
[WhiteElo "2262"]
[BlackElo "2037"]
[Annotator "RC"]
[PlyCount "59"]
[EventDate "2024.03.31"]
[EventType "swiss"]
[EventCountry "HUN"]
[SourceTitle "playchess.com"]
[Source "ChessBase"]
[SourceQuality "1"]
[TimeControl "5400+30"]

1. e4 {[%emt 0:10:32]} c5 {[%emt 0:00:14]} 2. Nf3 {[%emt 0:00:45]} d6 {[%emt 0:00:37]} 3. d4 {[%emt 0:00:06]} cxd4 {[%emt 0:00:10]} 4. Nxd4 {[%emt 0:00:09]} Nf6 {[%emt 0:00:09]} 5. Nc3 {[%emt 0:00:13]} a6 {[%emt 0:00:35]} 6. f3 {[%emt 0:00:45]} e5 {[%emt 0:00:46]} 7. Nb3 {[%emt 0:00:11]} Be6 {[%emt 0:00:08]} 8. Be3 {[%emt 0:00:20]} Be7 {[%emt 0:00:20]} 9. Qd2 {[%emt 0:00:19]} O-O {[%emt 0:00:56]} 10. O-O-O {[%emt 0:00:25]} Nbd7 {[%emt 0:00:46]} 11. g4 {[%emt 0:01:08]} b5 {[%emt 0:00:57]} 12. Rg1 {[%emt 0:00:55]} b4 {[%emt 0:05:01]} 13. Nd5 {[%emt 0:02:44]} Bxd5 {[%emt 0:03:17]} 14. exd5 {[%emt 0:00:07]} a5 {[%emt 0:00:33]} 15. g5 {[%emt 0:03:31]} Nh5 {[%emt 0:00:20]} 16. Kb1 {[%emt 0:01:35]} Qb8 {[%emt 0:00:41]} 17. Rg4 {[%emt 0:10:50]} Bd8 {[%emt 0:11:06]} 18. Bh3 {[%emt 0:29:34]} Qb7 {[%emt 0:12:36]} 19. Re4 {[%emt 0:22:46]} f5 {[%emt 0:25:07]} 20. gxf6 {[%emt 0:00:48]} Ndxf6 {[%emt 0:00:19]} 21. Rc4 {[%emt 0:01:19]} Bb6 {[%emt 0:10:01]} 22. Rc6 {[%emt 0:06:10]} Bxe3 {[%emt 0:01:26]} 23. Be6+ {[%emt 0:00:06]} Kh8 {[%emt 0:00:10]} 24. Qxe3 {[%emt 0:00:03]} Ra6 {[%emt 0:03:09]} 25. Qd3 {[%emt 0:02:35]} Rxc6 {[%emt 0:07:09]} 26. Nxa5 {[%emt 0:00:42]} Qb6 {[%emt 0:03:48]} 27. dxc6 {[%emt 0:00:51]} Qxa5 {[%emt 0:00:40]} 28. Qxd6 {[%emt 0:00:06]} Qa8 {[%emt 0:05:25]} 29. c7 {[%emt 0:03:00]} b3 {[%emt 0:01:00]} 30. Qxf8+ {[%emt 0:00:15]} 1-0

[Event "Hungarian Youth-ch I 2024"]
[Site "Szolnok"]
[Date "2024.04.06"]
[Round "9.4"]
[White "Barna, Peter"]
[Black "Borzsei, Andras"]
[Result "0-1"]
[ECO "B23"]
[WhiteElo "1702"]
[BlackElo "2126"]
[Annotator "RC"]
[PlyCount "80"]
[EventDate "2024.03.31"]
[EventType "swiss"]
[EventCountry "HUN"]
[SourceTitle "playchess.com"]
[Source "ChessBase"]
[SourceQuality "1"]
[TimeControl "5400+30"]

1. e4 {[%emt 0:00:02]} c5 {[%emt 0:00:06]} 2. Nc3 {[%emt 0:00:05]} e6 {[%emt 0:00:04]} 3. f4 {[%emt 0:00:07]} d5 {[%emt 0:00:04]} 4. Bb5+ {[%emt 0:00:30]} Bd7 {[%emt 0:00:05]} 5. Bxd7+ {[%emt 0:00:06]} Qxd7 {[%emt 0:00:01]} 6. d3 {[%emt 0:00:18]} Nc6 {[%emt 0:00:05]} 7. Nf3 {[%emt 0:00:18]} Nf6 {[%emt 0:00:07]} 8. O-O {[%emt 0:00:31]} Be7 {[%emt 0:00:05]} 9. Qe1 {[%emt 0:01:10]} dxe4 {[%emt 0:04:32]} 10. Nxe4 {[%emt 0:06:16]} O-O {[%emt 0:01:07]} 11. Bd2 {[%emt 0:08:35]} Nd4 {[%emt 0:06:41]} 12. Nxd4 {[%emt 0:02:18]} Qxd4+ {[%emt 0:00:30]} 13. Qf2 {[%emt 0:00:12]} Qxb2 {[%emt 0:01:04]} 14. Bc3 {[%emt 0:31:45]} Nxe4 {[%emt 0:01:47]} 15. Bxb2 {[%emt 0:00:08]} Nxf2 {[%emt 0:00:03]} 16. Rxf2 {[%emt 0:00:06]} c4 {[%emt 0:15:15]} 17. Rf3 {[%emt 0:01:55]} cxd3 {[%emt 0:00:54]} 18. Rxd3 {[%emt 0:00:06]} Rfd8 {[%emt 0:00:07]} 19. Rad1 {[%emt 0:02:28]} Rxd3 {[%emt 0:01:00]} 20. Rxd3 {[%emt 0:00:05]} Rd8 {[%emt 0:00:06]} 21. Rxd8+ {[%emt 0:00:18]} Bxd8 {[%emt 0:00:04]} 22. Ba3 {[%emt 0:00:06]} f6 {[%emt 0:01:42]} 23. Kf2 {[%emt 0:03:55]} Kf7 {[%emt 0:00:48]} 24. Kf3 {[%emt 0:00:05]} Be7 {[%emt 0:01:45]} 25. Bb2 {[%emt 0:02:32]} Ke8 {[%emt 0:01:16]} 26. Ke4 {[%emt 0:00:32]} Kd7 {[%emt 0:01:42]} 27. f5 {[%emt 0:03:56]} exf5+ {[%emt 0:01:06]} 28. Kxf5 {[%emt 0:00:02]} g6+ {[%emt 0:00:08]} 29. Ke4 {[%emt 0:00:28]} Ke6 {[%emt 0:00:08]} 30. h3 {[%emt 0:03:18]} f5+ {[%emt 0:03:15]} 31. Kd3 {[%emt 0:00:05]} Bf6 {[%emt 0:01:03]} 32. Bxf6 {[%emt 0:06:30]} Kxf6 {[%emt 0:00:04]} 33. Kd4 {[%emt 0:01:08]} Ke6 {[%emt 0:00:05]} 34. c4 {[%emt 0:09:32]} Kd6 {[%emt 0:02:14]} 35. c5+ {[%emt 0:01:05]} Ke6 {[%emt 0:03:56]} 36. h4 {[%emt 0:01:22]} h6 {[%emt 0:05:15]} 37. g3 {[%emt 0:00:51]} g5 {[%emt 0:01:34]} 38. hxg5 {[%emt 0:00:03]} hxg5 {[%emt 0:00:03]} 39. a3 {[%emt 0:00:06]} g4 {[%emt 0:00:50]} 40. a4 {[%emt 0:01:30]} a5 {[%emt 0:02:20]} 0-1

[Event "Hungarian Youth-ch I 2024"]
[Site "Szolnok"]
[Date "2024.04.06"]
[Round "9.5"]
[White "Jankovics, Emod"]
[Black "Frank, Balint"]
[Result "0-1"]
[ECO "A43"]
[WhiteElo "1699"]
[BlackElo "1939"]
[Annotator "RC"]
[PlyCount "26"]
[EventDate "2024.03.31"]
[EventType "swiss"]
[EventCountry "HUN"]
[SourceTitle "playchess.com"]
[Source "ChessBase"]
[SourceQuality "1"]
[TimeControl "5400+30"]

1. d4 {[%emt 0:00:01]} c5 {[%emt 0:04:30]} 2. Nf3 {[%emt 0:02:02]} cxd4 {[%emt 0:00:10]} 3. Nxd4 {[%emt 0:00:06]} Nf6 {[%emt 0:00:27]} 4. g3 {[%emt 0:01:22]} d5 {[%emt 0:01:20]} 5. Bg2 {[%emt 0:01:53]} e5 {[%emt 0:02:55]} 6. Nf3 {[%emt 0:00:44]} Nc6 {[%emt 0:00:23]} 7. O-O {[%emt 0:00:33]} h6 {[%emt 0:02:14]} 8. Re1 {[%emt 0:01:39]} Bc5 {[%emt 0:06:19]} 9. a3 {[%emt 0:05:47]} e4 {[%emt 0:06:05]} 10. Nfd2 {[%emt 0:01:12]} Bxf2+ {[%emt 0:00:33]} 11. Kf1 {[%emt 0:04:23]} Bxe1 {[%emt 0:02:52]} 12. Qxe1 {[%emt 0:00:23]} Ng4 {[%emt 0:03:01]} 13. Bh3 {[%emt 0:06:31]} Ne3+ {[%emt 0:02:52]} 0-1

[Event "Hungarian Youth-ch I 2024"]
[Site "Szolnok"]
[Date "2024.04.06"]
[Round "9.6"]
[White "Foldes, Marton Gabor"]
[Black "Csernyik, Mark"]
[Result "1/2-1/2"]
[ECO "D12"]
[WhiteElo "2162"]
[BlackElo "2016"]
[Annotator "RC"]
[PlyCount "45"]
[EventDate "2024.03.31"]
[EventType "swiss"]
[EventCountry "HUN"]
[SourceTitle "playchess.com"]
[Source "ChessBase"]
[SourceQuality "1"]
[TimeControl "5400+30"]

1. d4 {[%emt 0:00:02]} d5 {[%emt 0:00:51]} 2. Nf3 {[%emt 0:03:10]} Nf6 {[%emt 0:01:17]} 3. c4 {[%emt 0:02:20]} c6 {[%emt 0:00:34]} 4. e3 {[%emt 0:05:27]} Bf5 {[%emt 0:01:11]} 5. Qb3 {[%emt 0:02:27]} Qc7 {[%emt 0:02:05]} 6. cxd5 {[%emt 0:05:19]} cxd5 {[%emt 0:00:44]} 7. Nc3 {[%emt 0:00:12]} e6 {[%emt 0:01:09]} 8. Bd2 {[%emt 0:01:02]} Nc6 {[%emt 0:03:23]} 9. Rc1 {[%emt 0:03:56]} Be7 {[%emt 0:01:20]} 10. Be2 {[%emt 0:22:57]} O-O {[%emt 0:01:10]} 11. O-O {[%emt 0:00:16]} Ne4 {[%emt 0:15:46]} 12. Nxe4 {[%emt 0:01:02]} Bxe4 {[%emt 0:01:14]} 13. Ne5 {[%emt 0:04:34]} Bd6 {[%emt 0:03:49]} 14. f3 {[%emt 0:02:44]} Bg6 {[%emt 0:03:42]} 15. f4 {[%emt 0:00:32]} Bxe5 {[%emt 0:05:54]} 16. fxe5 {[%emt 0:00:24]} f6 {[%emt 0:03:14]} 17. exf6 {[%emt 0:03:35]} Rxf6 {[%emt 0:00:24]} 18. Bf3 {[%emt 0:07:09]} Raf8 {[%emt 0:01:13]} 19. Bb4 {[%emt 0:06:59]} R8f7 {[%emt 0:00:46]} 20. Be1 {[%emt 0:00:59]} Rf8 {[%emt 0:01:46]} 21. Bb4 {[%emt 0:10:37]} R8f7 {[%emt 0:00:22]} 22. Be1 {[%emt 0:00:06]} Rf8 {[%emt 0:00:11]} 23. Bb4 {[%emt 0:07:26]} 1/2-1/2

[Event "Hungarian Youth-ch I 2024"]
[Site "Szolnok"]
[Date "2024.04.06"]
[Round "9.7"]
[White "Gergely, Daniel"]
[Black "Kolimar, Kristof Pal"]
[Result "0-1"]
[ECO "D31"]
[WhiteElo "2230"]
[BlackElo "2282"]
[Annotator "RC"]
[PlyCount "80"]
[EventDate "2024.03.31"]
[EventType "swiss"]
[EventCountry "HUN"]
[SourceTitle "playchess.com"]
[Source "ChessBase"]
[SourceQuality "1"]
[TimeControl "5400+30"]

1. d4 {[%emt 0:00:05]} d5 {[%emt 0:04:11]} 2. c4 {[%emt 0:00:29]} e6 {[%emt 0:00:03]} 3. Nc3 {[%emt 0:00:30]} Bb4 {[%emt 0:00:04]} 4. a3 {[%emt 0:00:56]} Bxc3+ {[%emt 0:00:05]} 5. bxc3 {[%emt 0:00:04]} Nf6 {[%emt 0:00:07]} 6. e3 {[%emt 0:07:18]} c6 {[%emt 0:00:37]} 7. cxd5 {[%emt 0:00:32]} cxd5 {[%emt 0:04:00]} 8. Nf3 {[%emt 0:02:25]} O-O {[%emt 0:00:55]} 9. a4 {[%emt 0:00:26]} Qc7 {[%emt 0:04:49]} 10. Qb3 {[%emt 0:11:37]} Nc6 {[%emt 0:04:07]} 11. Ba3 {[%emt 0:05:19]} Re8 {[%emt 0:05:27]} 12. Bb4 {[%emt 0:10:01]} e5 {[%emt 0:06:29]} 13. Bb5 {[%emt 0:06:59]} e4 {[%emt 0:08:06]} 14. Nd2 {[%emt 0:08:23]} Be6 {[%emt 0:03:47]} 15. Rc1 {[%emt 0:03:16]} Rec8 {[%emt 0:06:21]} 16. Qa3 {[%emt 0:06:10]} Nxb4 {[%emt 0:08:05]} 17. Qxb4 {[%emt 0:00:06]} a6 {[%emt 0:00:39]} 18. Be2 a5 {[%emt 0:02:44]} 19. Qb3 {[%emt 0:05:22]} Ne8 {[%emt 0:00:13]} 20. O-O {[%emt 0:04:23]} Nd6 {[%emt 0:00:49]} 21. Rc2 {[%emt 0:01:03]} f5 {[%emt 0:07:55]} 22. Rfc1 {[%emt 0:06:10]} Nc4 {[%emt 0:02:50]} 23. Nxc4 {[%emt 0:02:04]} dxc4 {[%emt 0:00:01]} 24. Qa3 {[%emt 0:04:01]} Bd5 {[%emt 0:04:25]} 25. Rb1 {[%emt 0:01:43]} Qf7 {[%emt 0:02:30]} 26. Rb5 {[%emt 0:03:03]} Ra6 {[%emt 0:00:47]} 27. Rcb2 {[%emt 0:01:29]} Rf6 {[%emt 0:04:06]} 28. Rc5 {[%emt 0:03:45]} Rd8 {[%emt 0:05:10]} 29. Rbb5 {[%emt 0:01:06]} Kh8 {[%emt 0:00:13]} 30. g3 {[%emt 0:04:11]} Bc6 {[%emt 0:01:38]} 31. Bxc4 {[%emt 0:01:33]} Qg6 {[%emt 0:00:53]} 32. Rb1 {[%emt 0:01:04]} f4 {[%emt 0:00:23]} 33. Bf1 {[%emt 0:00:50]} fxe3 {[%emt 0:01:04]} 34. fxe3 {[%emt 0:00:12]} Qh6 {[%emt 0:00:04]} 35. Re1 {[%emt 0:00:37]} Rdf8 {[%emt 0:05:28]} 36. Bg2 {[%emt 0:00:41]} Bd7 {[%emt 0:01:52]} 37. Rc7 {[%emt 0:00:33]} Bh3 {[%emt 0:00:19]} 38. Qa2 {[%emt 0:00:29]} Qxe3+ {[%emt 0:02:04]} 39. Rxe3 {[%emt 0:00:09]} Rf1+ {[%emt 0:00:00]} 40. Bxf1 {[%emt 0:00:11]} Rxf1# {[%emt 0:00:01]} 0-1

[Event "Hungarian Youth-ch I 2024"]
[Site "Szolnok"]
[Date "2024.04.06"]
[Round "9.8"]
[White "Turcsanyi, Vince Gergo"]
[Black "Megyaszai, Balazs"]
[Result "1-0"]
[ECO "B10"]
[WhiteElo "2247"]
[BlackElo "2029"]
[Annotator "RC"]
[PlyCount "77"]
[EventDate "2024.03.31"]
[EventType "swiss"]
[EventCountry "HUN"]
[SourceTitle "playchess.com"]
[Source "ChessBase"]
[SourceQuality "1"]
[TimeControl "5400+30"]

1. e4 {[%emt 0:00:06]} c6 {[%emt 0:00:47]} 2. Nf3 {[%emt 0:00:15]} d5 {[%emt 0:00:35]} 3. d3 {[%emt 0:00:15]} g6 {[%emt 0:03:35]} 4. e5 {[%emt 0:00:45]} Bg7 {[%emt 0:01:15]} 5. d4 {[%emt 0:00:46]} Qc7 {[%emt 0:04:21]} 6. Be2 {[%emt 0:04:11]} h5 {[%emt 0:11:30]} 7. O-O {[%emt 0:05:36]} Nh6 {[%emt 0:04:15]} 8. Bf4 {[%emt 0:08:48]} Qb6 {[%emt 0:04:58]} 9. Qd2 {[%emt 0:11:11]} Qxb2 {[%emt 0:13:03]} 10. Nc3 {[%emt 0:00:08]} Qb6 {[%emt 0:00:22]} 11. h3 {[%emt 0:07:50]} Nf5 {[%emt 0:05:20]} 12. a4 {[%emt 0:11:59]} a5 {[%emt 0:10:30]} 13. Na2 {[%emt 0:09:31]} Na6 {[%emt 0:04:03]} 14. c4 {[%emt 0:12:29]} dxc4 {[%emt 0:12:21]} 15. Bxc4 {[%emt 0:02:15]} Nc7 {[%emt 0:01:18]} 16. Rab1 {[%emt 0:06:23]} Qa7 {[%emt 0:00:12]} 17. Nc3 {[%emt 0:02:44]} Bh6 {[%emt 0:07:01]} 18. Bxh6 {[%emt 0:05:19]} Nxh6 {[%emt 0:00:02]} 19. d5 {[%emt 0:00:21]} cxd5 {[%emt 0:05:25]} 20. Nxd5 {[%emt 0:00:13]} Nxd5 {[%emt 0:01:13]} 21. Bxd5 {[%emt 0:00:31]} Nf5 {[%emt 0:00:41]} 22. Rfc1 {[%emt 0:07:26]} Ng7 {[%emt 0:03:30]} 23. Bxb7 {[%emt 0:01:58]} Bxb7 {[%emt 0:01:23]} 24. Rc7 {[%emt 0:00:06]} O-O {[%emt 0:00:35]} 25. Rbxb7 {[%emt 0:01:00]} Qa6 {[%emt 0:00:09]} 26. Rxe7 {[%emt 0:00:39]} Rad8 {[%emt 0:01:53]} 27. Rxf7 {[%emt 0:00:43]} Qxb7 {[%emt 0:00:22]} 28. Rxb7 {[%emt 0:00:08]} Rxd2 {[%emt 0:00:05]} 29. Nxd2 {[%emt 0:00:04]} Rd8 {[%emt 0:01:23]} 30. Nf3 {[%emt 0:00:53]} Rd5 {[%emt 0:00:16]} 31. Ra7 {[%emt 0:00:54]} Ne6 {[%emt 0:00:21]} 32. Kh2 {[%emt 0:00:23]} Rc5 {[%emt 0:00:22]} 33. g3 {[%emt 0:00:38]} Rc2 {[%emt 0:00:32]} 34. Kg1 {[%emt 0:00:27]} Nc5 {[%emt 0:00:16]} 35. Nd4 {[%emt 0:00:26]} Rd2 {[%emt 0:00:38]} 36. Ra8+ {[%emt 0:00:35]} Kf7 {[%emt 0:00:16]} 37. e6+ {[%emt 0:00:24]} Ke7 {[%emt 0:00:19]} 38. Ra7+ {[%emt 0:00:19]} Ke8 {[%emt 0:00:07]} 39. Nc6 {[%emt 0:00:25]} 1-0

[Event "Hungarian Youth-ch I 2024"]
[Site "Szolnok"]
[Date "2024.04.06"]
[Round "9.9"]
[White "Herczeg, Marcell"]
[Black "Szegedy, Matyas"]
[Result "1-0"]
[ECO "B11"]
[WhiteElo "2107"]
[BlackElo "2177"]
[Annotator "RC"]
[PlyCount "73"]
[EventDate "2024.03.31"]
[EventType "swiss"]
[EventCountry "HUN"]
[SourceTitle "playchess.com"]
[Source "ChessBase"]
[SourceQuality "1"]
[TimeControl "5400+30"]

1. e4 {[%emt 0:00:05]} c6 {[%emt 0:00:22]} 2. Nc3 {[%emt 0:00:24]} d5 {[%emt 0:00:17]} 3. Nf3 {[%emt 0:00:26]} Bg4 {[%emt 0:00:32]} 4. h3 {[%emt 0:00:14]} Bxf3 {[%emt 0:00:12]} 5. Qxf3 {[%emt 0:00:06]} e6 {[%emt 0:00:07]} 6. Be2 {[%emt 0:00:22]} Nf6 {[%emt 0:00:23]} 7. O-O {[%emt 0:01:02]} Bc5 {[%emt 0:01:18]} 8. exd5 {[%emt 0:01:24]} cxd5 {[%emt 0:01:23]} 9. Rd1 {[%emt 0:03:58]} Nc6 {[%emt 0:03:24]} 10. Na4 {[%emt 0:02:58]} Be7 {[%emt 0:02:49]} 11. d4 {[%emt 0:02:27]} O-O {[%emt 0:00:15]} 12. Nc3 {[%emt 0:19:24]} a6 {[%emt 0:06:51]} 13. Qf4 {[%emt 0:09:35]} Rc8 {[%emt 0:09:54]} 14. a3 {[%emt 0:02:12]} b5 {[%emt 0:12:31]} 15. Bd3 {[%emt 0:01:37]} Na5 {[%emt 0:09:59]} 16. Ne2 {[%emt 0:02:13]} Nc4 {[%emt 0:08:45]} 17. Re1 {[%emt 0:05:54]} Re8 {[%emt 0:01:17]} 18. Kf1 {[%emt 0:02:26]} Qb6 {[%emt 0:01:59]} 19. Ng1 {[%emt 0:02:22]} Nd6 {[%emt 0:02:01]} 20. Nf3 {[%emt 0:05:10]} Nfe4 {[%emt 0:04:52]} 21. Be3 {[%emt 0:02:48]} f5 {[%emt 0:02:00]} 22. h4 {[%emt 0:04:26]} h6 {[%emt 0:04:29]} 23. Qh2 {[%emt 0:04:36]} Nf7 {[%emt 0:03:13]} 24. Bf4 {[%emt 0:03:04]} Bf6 {[%emt 0:00:43]} 25. c3 {[%emt 0:01:13]} g5 {[%emt 0:08:45]} 26. hxg5 {[%emt 0:03:43]} hxg5 {[%emt 0:00:07]} 27. Be5 {[%emt 0:00:37]} Nxe5 {[%emt 0:00:46]} 28. Nxe5 {[%emt 0:00:08]} Kg7 {[%emt 0:01:20]} 29. Qh5 {[%emt 0:06:12]} Bxe5 {[%emt 0:02:05]} 30. Bxe4 {[%emt 0:00:06]} Rh8 {[%emt 0:09:08]} 31. Qxg5+ {[%emt 0:00:17]} Kf7 {[%emt 0:00:06]} 32. dxe5 {[%emt 0:04:55]} Rh1+ {[%emt 0:01:46]} 33. Ke2 {[%emt 0:00:05]} Rxe1+ {[%emt 0:00:07]} 34. Rxe1 {[%emt 0:00:08]} fxe4 {[%emt 0:00:05]} 35. Rh1 {[%emt 0:01:10]} Rg8 {[%emt 0:02:18]} 36. Rh7+ {[%emt 0:00:05]} Kf8 {[%emt 0:00:04]} 37. Qe7# {[%emt 0:00:03]} 1-0

[Event "Hungarian Youth-ch I 2024"]
[Site "Szolnok"]
[Date "2024.04.06"]
[Round "9.10"]
[White "Bodrogi, Bendeguz"]
[Black "Szabo, Marton Nandor"]
[Result "1-0"]
[ECO "A05"]
[WhiteElo "2316"]
[BlackElo "1957"]
[Annotator "RC"]
[PlyCount "85"]
[EventDate "2024.03.31"]
[EventType "swiss"]
[EventCountry "HUN"]
[SourceTitle "playchess.com"]
[Source "ChessBase"]
[SourceQuality "1"]
[TimeControl "5400+30"]

1. Nf3 {[%emt 0:00:11]} Nf6 {[%emt 0:00:07]} 2. g3 {[%emt 0:00:19]} g6 {[%emt 0:00:04]} 3. b3 {[%emt 0:00:18]} c5 {[%emt 0:00:40]} 4. c4 {[%emt 0:01:17]} Bg7 {[%emt 0:00:41]} 5. Bb2 {[%emt 0:00:16]} d6 {[%emt 0:00:12]} 6. Bg2 {[%emt 0:04:58]} e5 {[%emt 0:00:45]} 7. Nc3 {[%emt 0:02:07]} O-O {[%emt 0:04:10]} 8. O-O {[%emt 0:02:19]} Nc6 {[%emt 0:00:15]} 9. d3 {[%emt 0:00:16]} Ne8 {[%emt 0:04:07]} 10. a3 {[%emt 0:04:14]} a5 {[%emt 0:03:58]} 11. Ne1 {[%emt 0:09:31]} Nc7 {[%emt 0:02:51]} 12. Nc2 {[%emt 0:02:14]} Rb8 {[%emt 0:01:20]} 13. Na4 {[%emt 0:25:37]} Ne6 {[%emt 0:20:18]} 14. Qd2 {[%emt 0:05:29]} Bd7 {[%emt 0:10:52]} 15. b4 {[%emt 0:05:51]} axb4 {[%emt 0:15:28]} 16. axb4 {[%emt 0:00:42]} b5 {[%emt 0:02:12]} 17. cxb5 {[%emt 0:02:13]} Rxb5 {[%emt 0:01:08]} 18. bxc5 {[%emt 0:02:47]} Nxc5 {[%emt 0:00:46]} 19. Nxc5 {[%emt 0:00:45]} Rxb2 {[%emt 0:00:52]} 20. Nxd7 {[%emt 0:05:32]} Qxd7 {[%emt 0:00:09]} 21. Qc3 {[%emt 0:03:23]} Rb6 {[%emt 0:03:11]} 22. Rab1 {[%emt 0:01:50]} Rxb1 {[%emt 0:05:43]} 23. Rxb1 {[%emt 0:00:05]} e4 {[%emt 0:04:30]} 24. d4 {[%emt 0:01:45]} Rc8 {[%emt 0:01:30]} 25. Qd2 {[%emt 0:02:32]} f5 {[%emt 0:00:12]} 26. e3 {[%emt 0:02:17]} Qf7 {[%emt 0:05:59]} 27. Na3 {[%emt 0:03:13]} Ra8 {[%emt 0:00:31]} 28. Nb5 {[%emt 0:01:32]} Rb8 {[%emt 0:02:32]} 29. Bf1 {[%emt 0:00:33]} Qd7 {[%emt 0:00:39]} 30. Qa2+ {[%emt 0:01:03]} Kh8 {[%emt 0:00:28]} 31. Qa6 {[%emt 0:04:15]} Na7 {[%emt 0:02:11]} 32. Qa5 {[%emt 0:03:40]} Nc6 {[%emt 0:04:37]} 33. Qa2 {[%emt 0:00:48]} h5 {[%emt 0:02:19]} 34. Nc3 {[%emt 0:00:53]} Rxb1 {[%emt 0:00:34]} 35. Qxb1 {[%emt 0:00:08]} Ne7 {[%emt 0:01:01]} 36. Qb6 {[%emt 0:01:13]} g5 {[%emt 0:00:54]} 37. Bb5 {[%emt 0:00:50]} Qc8 {[%emt 0:00:36]} 38. Qxd6 {[%emt 0:00:43]} Qxc3 {[%emt 0:00:02]} 39. Qxe7 {[%emt 0:00:11]} f4 {[%emt 0:01:03]} 40. Qxg5 {[%emt 0:00:34]} f3 {[%emt 0:00:07]} 41. Qxh5+ {[%emt 0:00:09]} Kg8 {[%emt 0:00:11]} 42. Qe8+ {[%emt 0:00:09]} Bf8 {[%emt 0:00:12]} 43. Qxe4 {[%emt 0:00:42]} 1-0

[Event "Hungarian Youth-ch I 2024"]
[Site "Szolnok"]
[Date "2024.04.06"]
[Round "9.11"]
[White "Lehocz, Jozsef Jr."]
[Black "Horvath, Andras"]
[Result "0-1"]
[ECO "C50"]
[WhiteElo "2143"]
[BlackElo "2260"]
[Annotator "RC"]
[PlyCount "52"]
[EventDate "2024.03.31"]
[EventType "swiss"]
[EventCountry "HUN"]
[SourceTitle "playchess.com"]
[Source "ChessBase"]
[SourceQuality "1"]
[TimeControl "5400+30"]

1. e4 {[%emt 0:00:25]} e5 {[%emt 0:00:06]} 2. Nf3 {[%emt 0:00:17]} Nc6 {[%emt 0:00:06]} 3. Bc4 {[%emt 0:00:43]} Nf6 {[%emt 0:00:08]} 4. d3 {[%emt 0:00:48]} Bc5 {[%emt 0:00:13]} 5. Nc3 {[%emt 0:00:46]} d6 {[%emt 0:02:58]} 6. O-O {[%emt 0:00:25]} Be6 {[%emt 0:04:57]} 7. Bb3 {[%emt 0:03:00]} h6 {[%emt 0:14:23]} 8. Be3 {[%emt 0:07:28]} Bb6 {[%emt 0:03:57]} 9. Nd2 {[%emt 0:06:10]} Nd4 {[%emt 0:04:50]} 10. Ba4+ {[%emt 0:03:56]} c6 {[%emt 0:02:39]} 11. Ne2 {[%emt 0:07:30]} Bg4 {[%emt 0:03:43]} 12. Bxd4 {[%emt 0:05:47]} Bxd4 {[%emt 0:00:49]} 13. c3 {[%emt 0:04:51]} Bb6 {[%emt 0:01:05]} 14. h3 {[%emt 0:05:14]} Be6 {[%emt 0:03:47]} 15. Kh2 {[%emt 0:05:53]} h5 {[%emt 0:04:05]} 16. d4 {[%emt 0:03:19]} Qe7 {[%emt 0:10:11]} 17. f4 {[%emt 0:04:02]} Ng4+ {[%emt 0:18:06]} 18. hxg4 {[%emt 0:04:21]} hxg4+ {[%emt 0:00:03]} 19. Kg1 {[%emt 0:00:08]} exd4 {[%emt 0:02:51]} 20. Nxd4 {[%emt 0:17:41]} Qh4 {[%emt 0:06:36]} 21. Re1 {[%emt 0:05:28]} g3 {[%emt 0:04:30]} 22. Kf1 {[%emt 0:00:13]} Qxf4+ {[%emt 0:02:36]} 23. N2f3 {[%emt 0:00:49]} Bc4+ {[%emt 0:00:48]} 24. Kg1 {[%emt 0:00:20]} Qh6 {[%emt 0:00:35]} 25. Bxc6+ {[%emt 0:02:56]} bxc6 {[%emt 0:00:17]} 26. Re2 {[%emt 0:00:05]} Qh1# {[%emt 0:00:09]} 0-1